bitfinex-derivatives/quotes_BNBF0:USTF0_20251027
["timestamp","ask_amount","ask_price","bid_price","bid_amount"]
[1761558895782,1.2931272,1157.7,1156.1,0.52694105]
[1761558896085,1.2931272,1158.1,1155.6,0.64005444]
[1761558896283,1.2931272,1158.1,1155.7,0.52683389]
[1761558896482,1.2931272,1158.1,1155.8,0.52683389]
[1761558896685,1.2931272,1158.1,1155.9,0.52683389]
[1761558896983,1.2931272,1158.1,1156.0,0.52683389]
[1761558897183,1.2931272,1158.1,1156.1,0.52683389]
[1761558897482,1.2931272,1158.1,1155.6,0.64005444]
[1761558897684,1.2931272,1158.1,1155.7,0.52674287]
[1761558897883,1.2931272,1158.3,1155.8,0.52674287]
[1761558898085,1.2931272,1158.3,1155.9,1.16679731]
[1761558898284,1.2931272,1158.3,1156.0,0.52674287]
[1761558898482,1.2931272,1158.3,1156.1,0.52674287]
[1761558898684,1.2931272,1158.3,1156.2,0.52674287]
[1761558898882,1.2931272,1158.3,1156.3,0.52674287]
[1761558899085,1.2931272,1158.3,1155.9,0.64005444]
[1761558899086,1.2931272,1158.3,1156.4,0.52674287]
[1761558899284,1.2931272,1158.3,1155.9,0.64005444]
[1761558899488,1.2931272,1158.3,1156.0,0.52626091]
[1761558899787,1.2931272,1158.4,1156.1,0.52626091]
[1761558899986,1.2931272,1158.4,1156.2,0.52626091]
[1761558900185,1.2931272,1158.4,1156.3,0.52626091]
[1761558900386,1.2931272,1158.4,1156.4,0.52626091]
[1761558900586,1.2931272,1158.4,1155.8,0.64005444]
[1761558900787,1.2931272,1158.0,1155.9,0.52634699]
[1761558900985,1.2931272,1158.0,1156.0,0.52634699]
[1761558901186,1.2931272,1158.0,1156.1,0.52634699]
[1761558901383,1.2931272,1158.0,1155.7,0.64005444]
[1761558901588,1.2931272,1158.0,1155.8,0.52656962]
[1761558901884,1.2931272,1158.0,1155.9,0.52656962]
[1761558902087,1.2931272,1158.0,1156.0,0.52656962]
[1761558902284,1.2931272,1158.0,1156.1,0.52656962]
[1761558902488,1.2931272,1158.0,1155.7,0.64005444]
[1761558902785,1.2931272,1158.0,1155.8,0.52663436]
[1761558902984,1.2931272,1158.1,1155.9,0.52663436]
[1761558903189,1.2931272,1158.0,1156.0,0.52663436]
[1761558903389,1.2931272,1157.9,1156.1,0.52663436]
[1761558903585,1.2931272,1158.0,1155.7,0.64005444]
[1761558903785,1.2931272,1158.0,1155.8,0.52693218]
[1761558903985,1.2931272,1158.5,1155.9,0.52693218]
[1761558904187,1.2931272,1158.5,1156.0,0.52693218]
[1761558904386,1.2931272,1158.4,1156.1,0.52693218]
[1761558904690,1.2931272,1158.4,1155.4,0.64005444]
[1761558904889,1.2931272,1158.4,1155.5,0.52712688]
[1761558905090,1.2931272,1157.6,1155.6,1.16718132]
[1761558905289,1.2931272,1157.5,1155.7,0.52712688]
[1761558905486,1.2931272,1157.5,1155.4,0.64005444]
[1761558905487,1.2931272,1157.4,1155.8,0.52712688]
[1761558905689,1.2931272,1157.4,1155.4,0.64005444]
[1761558905889,1.2931272,1157.4,1155.5,0.52747877]
[1761558906189,1.2931272,1157.4,1155.6,0.52747877]
[1761558906392,1.2931272,1157.4,1155.7,0.52747877]
[1761558906591,1.2931272,1157.4,1155.8,0.52747877]
[1761558906793,1.2931272,1157.4,1155.4,0.64005444]
[1761558907097,1.2931272,1157.4,1155.5,0.52758613]
[1761558907392,1.2931272,1157.4,1155.6,0.52758613]
[1761558907691,1.2931272,1157.3,1155.3,0.64005444]
[1761558907890,1.2931272,1157.2,1155.4,0.52804178]
[1761558908194,1.2931272,1157.5,1155.5,0.52804178]
[1761558908492,1.2931272,1157.6,1155.6,0.52804178]
[1761558908688,1.2931272,1157.5,1155.7,0.52804178]
[1761558908994,1.2931272,1157.5,1155.2,0.64005444]
[1761558909193,1.2931272,1157.6,1155.3,0.52801912]
[1761558909390,1.2931272,1157.5,1155.4,0.52801912]
[1761558909593,1.2931272,1157.5,1155.5,0.52801912]
[1761558909793,1.2931272,1157.5,1155.6,0.52801912]
[1761558909991,1.2931272,1157.5,1155.7,0.52801912]
[1761558910194,1.2931272,1157.5,1155.2,0.64005444]
[1761558910394,1.2931272,1157.5,1155.3,0.52812933]
[1761558910594,1.2931272,1157.5,1155.4,0.52812933]
[1761558910793,1.2931272,1157.5,1155.5,0.52812933]
[1761558910992,1.2931272,1157.5,1155.6,0.52812933]
[1761558911191,1.2931272,1157.5,1155.7,0.52812933]
[1761558911394,1.2931272,1157.5,1155.2,0.64005444]
[1761558911592,1.2931272,1157.5,1155.3,0.52826792]
[1761558911795,1.2931272,1157.5,1155.4,0.52826792]
[1761558911990,1.2931272,1157.5,1155.5,0.52826792]
[1761558912193,1.2931272,1157.5,1155.6,0.52826792]
[1761558912396,1.2931272,1157.5,1155.7,0.52826792]
[1761558912697,1.2931272,1157.3,1155.3,0.64005444]
[1761558912892,1.2931272,1157.3,1155.4,0.52845484]
[1761558913193,1.2931272,1157.3,1155.5,0.52845484]
[1761558913496,1.2931272,1157.3,1155.6,0.52845484]
[1761558913692,1.2931272,1157.3,1155.3,0.64005444]
[1761558913896,1.2931272,1157.3,1155.4,0.52863412]
[1761558914094,1.2931272,1157.3,1155.5,0.52863412]
[1761558914390,1.2931272,1157.3,1155.6,0.52863412]
[1761558914594,1.2931272,1157.3,1155.7,0.52863412]
[1761558914793,1.2931272,1157.2,1155.3,0.64005444]
[1761558914992,1.2931272,1157.2,1155.4,0.52876]
[1761558915295,1.2931272,1157.2,1155.5,0.52876]
[1761558915493,1.2931272,1157.2,1155.6,0.52876]
[1761558915696,1.2931272,1157.2,1155.7,0.52876]
[1761558915899,1.2931272,1157.2,1155.3,0.64005444]
[1761558916096,1.2931272,1157.2,1155.4,0.52887653]
[1761558916295,1.2931272,1157.2,1155.5,0.52887653]
[1761558916496,1.2931272,1157.2,1155.6,0.52887653]
[1761558916697,1.2931272,1157.2,1155.7,0.52887653]
[1761558916993,1.2931272,1157.2,1155.3,0.64005444]
[1761558917196,1.2931272,1157.2,1155.4,1.16915754]
[1761558917492,1.2931272,1157.2,1155.5,0.5291031]
[1761558917696,1.2931272,1157.2,1155.6,0.5291031]
[1761558917995,1.2931272,1157.2,1155.7,0.5291031]
[1761558918192,1.2931272,1157.2,1155.4,0.64005444]
[1761558918396,1.2931272,1157.2,1155.5,0.52962622]
[1761558918593,1.2931272,1157.2,1155.6,0.52962622]
[1761558918791,1.2931272,1157.2,1155.7,0.52962622]
[1761558918993,1.2931272,1157.2,1155.4,0.64005444]
[1761558919191,1.2931272,1157.2,1155.5,0.52965582]
[1761558919493,1.2931272,1157.3,1155.6,0.52965582]
[1761558919791,1.2931272,1157.4,1155.7,0.52965582]
[1761558919994,1.2931272,1157.4,1155.8,0.52965582]
[1761558920195,1.2931272,1157.4,1155.4,0.64005444]
[1761558920492,1.2931272,1157.4,1155.5,0.53007849]
[1761558920692,1.2931272,1157.4,1155.6,0.53007849]
[1761558920993,1.2931272,1157.4,1155.7,0.53007849]
[1761558921194,1.2931272,1157.3,1155.8,0.53007849]
[1761558921497,1.2931272,1157.4,1155.4,0.64005444]
[1761558921792,1.2931272,1157.4,1155.5,0.53030248]
[1761558921993,1.2931272,1157.4,1155.6,0.53030248]
[1761558922197,1.2931272,1157.4,1155.7,0.53030248]
[1761558922397,1.2931272,1157.4,1155.8,0.53030248]
[1761558922696,1.2931272,1157.4,1155.4,0.64005444]
[1761558922893,1.2931272,1157.4,1155.5,0.53041637]
[1761558923193,1.2931272,1157.4,1155.6,0.53041637]
[1761558923393,1.2931272,1157.4,1155.7,0.53041637]
[1761558923592,1.2931272,1157.4,1155.8,0.53041637]
[1761558923797,1.2931272,1157.4,1155.4,0.64005444]
[1761558924098,1.2931272,1157.4,1155.5,0.53052101]
[1761558924398,1.2931272,1157.4,1155.6,0.53052101]
[1761558924593,1.2931272,1157.4,1155.7,0.53052101]
[1761558924794,1.2931272,1157.4,1155.8,0.53052101]
[1761558925097,1.2931272,1157.4,1155.9,0.53052101]
[1761558925393,1.2931272,1157.4,1155.4,0.64005444]
[1761558925597,1.2931272,1157.4,1155.5,0.53039343]
[1761558925897,1.2931272,1157.4,1155.6,0.53039343]
[1761558926100,1.2931272,1157.4,1155.7,0.53039343]
[1761558926298,1.2931272,1157.4,1155.8,0.53039343]
[1761558926496,1.2931272,1157.4,1155.9,0.53039343]
[1761558926700,1.2931272,1157.4,1155.4,0.64005444]
[1761558926997,1.2931272,1157.4,1155.5,0.53039398]
[1761558927195,1.2931272,1157.4,1155.6,0.53039398]
[1761558927400,1.2931272,1157.4,1155.7,0.53039398]
[1761558927597,1.2931272,1157.4,1155.8,0.53039398]
[1761558927801,1.2931272,1157.4,1155.9,0.53039398]
[1761558928097,1.2931272,1157.4,1155.4,0.64005444]
[1761558928401,1.2931272,1157.4,1155.5,0.53042914]
[1761558928596,1.2931272,1157.4,1155.6,0.53042914]
[1761558928796,1.2931272,1157.4,1155.7,0.53042914]
[1761558929005,1.2931272,1157.4,1155.8,0.53042914]
[1761558929198,1.2931272,1157.4,1155.9,0.53042914]
[1761558929397,1.2931272,1157.4,1155.4,0.64005444]
[1761558929599,1.2931272,1157.3,1155.5,0.53049844]
[1761558929800,1.2931272,1157.3,1155.6,0.53049844]
[1761558930001,1.2931272,1157.3,1155.7,0.53049844]
[1761558930199,1.2931272,1157.3,1155.8,0.53049844]
[1761558930403,1.2931272,1157.3,1155.4,0.64005444]
[1761558930602,1.2931272,1157.3,1155.5,0.53051842]
[1761558930799,1.2931272,1157.5,1155.6,0.53051842]
[1761558931005,1.2931272,1157.5,1155.4,0.64005444]
[1761558931006,1.2931272,1157.5,1155.7,0.53051842]
[1761558931199,1.2931272,1157.5,1155.8,0.53051842]
[1761558931403,1.2931272,1157.5,1155.9,0.53051842]
[1761558931704,1.2931272,1157.5,1155.4,0.64005444]
[1761558932003,1.2931272,1157.5,1155.5,0.53050862]
[1761558932201,1.2931272,1157.5,1155.6,0.53050862]
[1761558932400,1.2931272,1157.5,1155.7,0.53050862]
[1761558932600,1.2931272,1157.5,1155.8,0.53050862]
[1761558932803,1.2931272,1157.5,1155.9,0.53050862]
[1761558933003,1.2931272,1157.5,1155.4,0.64005444]
[1761558933205,1.2931272,1157.5,1155.5,0.53052047]
[1761558933406,1.2931272,1157.5,1155.6,0.53052047]
[1761558933605,1.2931272,1157.5,1155.7,0.53052047]
[1761558933805,1.2931272,1157.5,1155.8,0.53052047]
[1761558934104,1.2931272,1157.4,1155.9,0.53052047]
[1761558934306,1.2931272,1157.4,1155.4,0.64005444]
[1761558934501,1.2931272,1157.4,1155.5,0.53069404]
[1761558934701,1.2931272,1157.4,1155.6,0.53069404]
[1761558934905,1.2931272,1157.4,1155.7,0.53069404]
[1761558935106,1.2931272,1157.5,1155.8,0.53069404]
[1761558935306,1.2931272,1157.5,1155.9,0.53069404]
[1761558935503,1.2931272,1157.5,1156.0,0.53069404]
[1761558935707,1.2931272,1157.5,1155.5,0.64005444]
[1761558935906,1.2931272,1157.5,1155.6,0.53057491]
[1761558936114,1.2931272,1157.5,1155.7,0.53057491]
[1761558936412,1.2931272,1157.5,1155.8,0.53057491]
[1761558936611,1.2931272,1157.5,1155.9,0.53057491]
[1761558936910,1.2931272,1157.3,1155.6,0.64005444]
[1761558937111,1.2931272,1157.3,1155.7,0.53057084]
[1761558937410,1.2931272,1157.6,1155.8,0.53057084]
[1761558937614,1.2931272,1157.6,1155.9,0.53057084]
[1761558937812,1.2931272,1157.6,1156.0,0.53057084]
[1761558938010,1.2931272,1157.6,1156.1,0.53057084]
[1761558938314,1.2931272,1157.4,1155.7,0.64005444]
[1761558938515,1.2931272,1157.4,1155.8,0.53060712]
[1761558938814,1.2931272,1157.4,1155.9,0.53060712]
[1761558939016,1.2931272,1157.4,1156.0,0.53060712]
[1761558939214,1.2931272,1157.4,1155.7,0.64005444]
[1761558939511,1.2931272,1157.5,1155.8,0.53058282]
[1761558939714,1.2931272,1157.5,1155.9,0.53058282]
[1761558939914,1.2931272,1157.5,1156.0,0.53058282]
[1761558940111,1.2931272,1157.5,1156.1,0.53058282]
[1761558940411,1.2931272,1157.5,1155.7,0.64005444]
[1761558940615,1.2931272,1157.5,1155.8,0.53061323]
[1761558940816,1.2931272,1157.5,1155.9,0.53061323]
[1761558941111,1.2931272,1157.5,1156.0,0.53061323]
[1761558941315,1.2931272,1157.5,1156.1,0.53061323]
[1761558941517,1.2931272,1157.5,1155.7,0.64005444]
[1761558941817,1.2931272,1157.5,1155.8,0.530628]
[1761558942115,1.2931272,1157.5,1155.9,0.530628]
[1761558942316,1.2931272,1157.5,1156.0,0.530628]
[1761558942516,1.2931272,1157.5,1156.1,0.530628]
[1761558942717,1.2931272,1157.5,1155.7,0.64005444]
[1761558942917,1.2931272,1157.5,1155.8,0.53063355]
[1761558943117,1.2931272,1157.5,1155.9,0.53063355]
[1761558943411,1.2931272,1157.5,1156.0,0.53063355]
[1761558943612,1.2931272,1157.5,1156.1,0.53063355]
[1761558943815,1.2931272,1157.5,1155.6,0.64005444]
[1761558944014,1.2931272,1157.5,1155.7,0.53101681]
[1761558944316,1.2931272,1157.5,1155.8,0.53101681]
[1761558944515,1.2931272,1157.5,1155.9,0.53101681]
[1761558944718,1.2931272,1157.5,1156.0,0.53101681]
[1761558944919,1.2931272,1157.5,1156.1,0.53101681]
[1761558945215,1.2931272,1157.5,1155.6,0.64005444]
[1761558945515,1.2931272,1157.5,1155.7,0.53104962]
[1761558945715,1.2931272,1157.5,1155.8,0.53104962]
[1761558945914,1.2931272,1157.5,1155.9,0.53104962]
[1761558946218,1.2931272,1157.5,1156.0,0.53104962]
[1761558946418,1.2931272,1157.5,1156.1,0.53104962]
[1761558946719,1.2931272,1157.5,1155.6,0.64269362]
[1761558947014,1.2931272,1157.5,1155.7,1.17381087]
[1761558947314,1.2931272,1157.4,1155.8,0.53111725]
[1761558947515,1.2931272,1157.4,1155.9,0.53111725]
[1761558947715,1.2931272,1157.4,1156.0,0.53111725]
[1761558947918,1.2931272,1157.4,1156.1,0.53111725]
[1761558948119,1.2931272,1157.4,1155.7,0.64269362]
[1761558948320,1.2931272,1157.4,1155.8,0.53093511]
[1761558948616,1.2931272,1157.4,1155.9,0.53093511]
[1761558948819,1.2931272,1157.3,1156.0,0.53093511]
[1761558949021,1.2931272,1157.4,1156.1,0.53093511]
[1761558949221,1.2931272,1157.4,1156.2,0.53093511]
[1761558949521,1.2931272,1157.4,1155.8,0.64269362]
[1761558949820,1.2931272,1157.4,1155.9,0.53066923]
[1761558950020,1.2931272,1157.4,1156.0,0.53066923]
[1761558950220,1.2931272,1157.4,1156.1,0.53066923]
[1761558950420,1.2931272,1157.4,1156.2,0.53066923]
[1761558950620,1.2931272,1157.4,1155.8,0.64269362]
[1761558950816,1.2931272,1157.4,1155.9,0.53067869]
[1761558951117,1.2931272,1157.4,1156.0,0.53067869]
[1761558951315,1.2931272,1157.4,1156.1,0.53067869]
[1761558951520,1.2931272,1157.4,1156.2,0.53067869]
[1761558951718,1.2931272,1157.4,1155.8,0.64269362]
[1761558951919,1.2931272,1157.4,1155.9,0.53052777]
[1761558952216,1.2931272,1157.4,1156.0,0.53052777]
[1761558952519,1.2931272,1157.4,1156.1,0.53052777]
[1761558952716,1.2931272,1157.4,1156.2,0.53052777]
[1761558952921,1.2931272,1157.4,1155.8,0.64269362]
[1761558953120,1.2931272,1157.8,1155.9,0.53055468]
[1761558953321,1.2931272,1157.8,1156.0,0.53055468]
[1761558953520,1.2931272,1157.8,1156.1,0.53055468]
[1761558953722,1.2931272,1157.8,1156.2,0.53055468]
[1761558953923,1.2931272,1157.8,1155.7,0.64269362]
[1761558954223,1.2931272,1157.8,1155.8,0.53057769]
[1761558954522,1.2931272,1157.8,1155.9,0.53057769]
[1761558954819,1.2931272,1157.8,1156.0,0.53057769]
[1761558955022,1.2931272,1157.8,1156.1,0.53057769]
[1761558955219,1.2931272,1157.8,1156.2,0.53057769]
[1761558955522,1.2931272,1157.8,1156.3,0.53057769]
[1761558955719,1.2931272,1158.0,1155.7,0.64269362]
[1761558955919,1.2931272,1157.8,1155.8,0.53076549]
[1761558956223,1.2931272,1157.5,1155.9,0.53076549]
[1761558956424,1.2931272,1157.5,1156.0,0.53076549]
[1761558956719,1.2931272,1157.5,1156.1,0.53076549]
[1761558956921,1.2931272,1157.5,1155.6,0.64269362]
[1761558957222,1.2931272,1157.5,1155.7,0.52980054]
[1761558957420,1.2931272,1157.5,1155.8,0.52980054]
[1761558957624,1.2931272,1157.5,1155.9,0.52980054]
[1761558957824,1.2931272,1157.5,1156.0,0.52980054]
[1761558958023,1.2931272,1157.5,1156.1,0.52980054]
[1761558958224,1.2931272,1157.5,1155.6,0.64269362]
[1761558958424,1.2931272,1157.5,1155.7,1.17262573]
[1761558958721,1.2931272,1157.3,1155.8,1.17262573]
[1761558958920,1.2931272,1157.3,1155.9,0.52993211]
[1761558959124,1.2931272,1157.3,1156.0,0.52993211]
[1761558959421,1.2931272,1157.2,1156.1,0.52993211]
[1761558959620,1.2931272,1157.3,1155.8,0.64269362]
[1761558959925,1.2931272,1157.3,1155.9,0.53015821]
[1761558960224,1.2931272,1157.3,1156.0,0.53015821]
[1761558960425,1.2931272,1157.3,1156.1,0.53015821]
[1761558960626,1.2931272,1157.3,1155.8,0.64269362]
[1761558960825,1.2931272,1157.3,1155.9,0.52977522]
[1761558961021,1.2931272,1157.3,1156.0,0.52977522]
[1761558961226,1.2931272,1157.3,1156.1,0.52977522]
[1761558961423,1.2931272,1157.3,1156.2,0.52977522]
[1761558961724,1.2931272,1157.6,1156.3,0.52915574]
[1761558961923,1.2931272,1157.6,1156.4,0.52915574]
[1761558962125,1.2931272,1157.6,1156.5,0.52915574]
[1761558962326,1.2931272,1157.6,1156.1,0.64269362]
[1761558962524,1.2931272,1157.6,1156.2,0.52900359]
[1761558962724,1.2931272,1157.6,1156.3,0.52900359]
[1761558962927,1.2931272,1157.7,1156.4,0.52900359]
[1761558963130,1.2931272,1157.7,1156.5,0.52900359]
[1761558963425,1.2931272,1157.5,1156.0,0.64269362]
[1761558963628,1.2931272,1157.5,1156.1,0.52913485]
[1761558963828,1.2931272,1157.5,1156.2,0.52913485]
[1761558964126,1.2931272,1157.5,1156.3,0.52913485]
[1761558964325,1.2931272,1157.5,1156.0,0.64269362]
[1761558964526,1.2931272,1157.5,1156.1,0.52915564]
[1761558964826,1.2931272,1157.5,1156.2,0.52915564]
[1761558965025,1.2931272,1157.5,1156.3,0.52915564]
[1761558965225,1.2931272,1157.5,1156.0,0.64269362]
[1761558965429,1.2931272,1157.5,1156.1,0.52910694]
[1761558965626,1.2931272,1157.5,1156.2,0.52910694]
[1761558965826,1.2931272,1157.5,1156.3,0.52910694]
[1761558966029,1.2931272,1157.5,1156.0,0.64269362]
[1761558966230,1.2931272,1157.5,1156.1,0.5288046]
[1761558966530,1.2931272,1157.5,1156.2,0.5288046]
[1761558966727,1.2931272,1157.5,1155.9,0.64269362]
[1761558966728,1.2931272,1157.5,1156.3,0.5288046]
[1761558966931,1.2931272,1157.5,1155.9,0.64269362]
[1761558967227,1.2931272,1157.5,1156.0,1.17136389]
[1761558967430,1.2931272,1157.5,1156.1,0.52867027]
[1761558967628,1.2931272,1157.5,1156.2,0.52867027]
[1761558967831,1.2931272,1157.5,1156.3,0.52867027]
[1761558968031,1.2931272,1157.5,1156.0,0.64269362]
[1761558968332,1.2931272,1157.6,1156.1,0.52858657]
[1761558968527,1.2931272,1157.6,1156.2,0.52858657]
[1761558968727,1.2931272,1157.6,1156.3,0.52858657]
[1761558968933,1.2931272,1157.6,1156.0,0.64269362]
[1761558969129,1.2931272,1157.9,1156.1,0.52852353]
[1761558969334,1.2931272,1157.9,1156.2,0.52852353]
[1761558969532,1.2931272,1157.9,1156.3,0.52852353]
[1761558969729,1.2931272,1157.9,1156.4,0.52852353]
[1761558970034,1.2931272,1158.0,1155.7,0.64269362]
[1761558970235,1.2931272,1158.0,1155.8,0.52866087]
[1761558970531,1.2931272,1158.0,1155.9,0.52866087]
[1761558970729,1.2931272,1158.0,1156.0,0.52866087]
[1761558970935,1.2931272,1158.0,1156.1,0.52866087]
[1761558971130,1.2931272,1158.0,1156.2,0.52866087]
[1761558971335,1.2931272,1158.0,1156.3,0.52866087]
[1761558971535,1.2931272,1157.6,1155.6,0.64269362]
[1761558971736,1.2931272,1157.6,1155.7,0.52872109]
[1761558971937,1.2931272,1157.6,1155.8,0.52872109]
[1761558972134,1.2931272,1157.6,1155.9,0.52872109]
[1761558972337,1.2931272,1158.3,1156.0,0.52872109]
[1761558972534,1.2931272,1158.3,1156.1,0.52872109]
[1761558972737,1.2931272,1158.3,1156.2,0.52872109]
[1761558972935,1.2931272,1158.3,1156.3,0.52872109]
[1761558973139,1.2931272,1158.3,1155.5,0.64269362]
[1761558973439,1.2931272,1158.3,1155.6,0.52859587]
[1761558973636,1.2931272,1158.3,1155.7,0.52859587]
[1761558973936,1.2931272,1158.3,1155.8,0.52859587]
[1761558974139,1.2931272,1158.3,1155.9,0.52859587]
[1761558974334,1.2931272,1158.3,1156.0,0.52859587]
[1761558974539,1.2931272,1158.3,1156.1,0.52859587]
[1761558974735,1.2931272,1158.3,1156.2,0.52859587]
[1761558974937,1.2931272,1158.3,1156.3,0.52859587]
[1761558975139,1.2931272,1158.3,1155.5,0.64269362]
[1761558975341,1.2931272,1158.3,1155.6,0.52860196]
[1761558975637,1.2931272,1158.3,1155.7,0.52860196]
[1761558975836,1.2931272,1158.3,1155.8,0.52860196]
[1761558976042,1.2931272,1158.3,1155.9,0.52860196]
[1761558976240,1.2931272,1158.3,1156.0,0.52860196]
[1761558976440,1.2931272,1158.3,1156.1,0.52860196]
[1761558976736,1.2931272,1158.3,1156.2,0.52860196]
[1761558976940,1.2931272,1158.3,1156.3,0.52860196]
[1761558977141,1.2931272,1158.3,1155.5,0.64269362]
[1761558977438,1.2931272,1157.8,1155.7,0.64269362]
[1761558977741,1.2931272,1157.8,1155.8,0.52867264]
[1761558978038,1.2931272,1157.8,1155.9,0.52867264]
[1761558978235,1.2931272,1157.8,1156.0,0.52867264]
[1761558978439,1.2931272,1157.7,1156.1,0.52867264]
[1761558978637,1.2931272,1157.7,1156.2,0.52867264]
[1761558978937,1.2931272,1157.1,1155.6,0.64269362]
[1761558979138,1.2931272,1157.1,1155.7,0.52903122]
[1761558979342,1.2931272,1157.1,1155.8,0.52903122]
[1761558979542,1.2931272,1157.1,1155.9,0.52903122]
[1761558979742,1.2931272,1157.1,1155.5,0.64269362]
[1761558979943,1.2931272,1157.1,1155.6,0.52912653]
[1761558980139,1.2931272,1157.1,1155.7,0.52912653]
[1761558980338,1.2931272,1157.1,1155.8,0.52912653]
[1761558980538,1.2931272,1157.1,1155.9,0.52912653]
[1761558980742,1.2931272,1157.1,1155.6,0.64269362]
[1761558980942,1.2931272,1157.1,1155.7,0.52909253]
[1761558981139,1.2931272,1157.1,1155.8,0.52909253]
[1761558981438,1.2931272,1157.1,1155.9,0.52909253]
[1761558981640,1.2931272,1157.1,1155.6,0.64269362]
[1761558981940,1.2931272,1157.1,1155.7,0.52908896]
[1761558982141,1.2931272,1157.1,1155.8,0.52908896]
[1761558982341,1.2931272,1157.1,1155.9,0.52908896]
[1761558982538,1.2931272,1157.1,1155.6,0.64269362]
[1761558982739,1.2931272,1157.1,1155.7,0.52909674]
[1761558983039,1.2931272,1157.1,1155.8,0.52909674]
[1761558983239,1.2931272,1157.1,1155.9,0.52909674]
[1761558983444,1.2931272,1157.1,1155.6,0.64269362]
[1761558983638,1.2931272,1157.1,1155.7,0.52907905]
[1761558983938,1.2931272,1157.1,1155.8,0.52907905]
[1761558984141,1.2931272,1157.1,1155.9,0.52907905]
[1761558984342,1.2931272,1157.2,1156.0,0.52901169]
[1761558984543,1.2931272,1157.2,1155.7,0.64269362]
[1761558984741,1.2931272,1157.2,1155.8,0.52901813]
[1761558984939,1.2931272,1157.3,1155.9,0.52901813]
[1761558985146,1.2931272,1157.3,1156.0,0.52901813]
[1761558985341,1.2931272,1157.3,1155.6,0.64269362]
[1761558985542,1.2931272,1157.3,1155.7,0.5290352]
[1761558985743,1.2931272,1157.3,1155.8,0.5290352]
[1761558985946,1.2931272,1157.3,1155.9,0.5290352]
[1761558986244,1.2931272,1157.3,1156.0,0.5290352]
[1761558986445,1.2931272,1157.3,1155.6,0.64269362]
[1761558986644,1.2931272,1157.3,1155.7,0.52909043]
[1761558986847,1.2931272,1157.3,1155.8,0.52909043]
[1761558987044,1.2931272,1157.3,1155.9,0.52909043]
[1761558987246,1.2931272,1157.3,1156.0,0.52909043]
[1761558987449,1.2931272,1157.3,1155.6,0.64269362]
[1761558987748,1.2931272,1157.3,1155.7,0.52917871]
[1761558988048,1.2931272,1157.3,1155.8,0.52917871]
[1761558988248,1.2931272,1157.3,1155.9,0.52917871]
[1761558988445,1.2931272,1157.3,1156.0,0.52917871]
[1761558988649,1.2931272,1157.3,1156.1,0.52917871]
[1761558988850,1.2931272,1157.3,1155.7,0.64269362]
[1761558989046,1.2931272,1157.3,1155.8,1.17180165]
[1761558989350,1.2931272,1157.3,1155.9,0.52910803]
[1761558989551,3.4419204,1158.0,1156.0,0.52910803]
[1761558989846,3.0083104,1158.6,1155.5,0.64269362]
[1761558989847,1.2931272,1158.1,1156.1,0.52910803]
[1761558990051,1.2931272,1158.1,1156.2,0.52910803]
[1761558990248,1.2931272,1158.1,1155.5,0.64269362]
[1761558990249,1.2931272,1158.1,1156.3,0.52910803]
[1761558990553,1.2931272,1158.1,1155.5,0.64269362]
[1761558990853,1.2931272,1158.1,1155.6,0.52920792]
[1761558991050,1.2931272,1158.1,1155.7,0.52920792]
[1761558991254,1.2931272,1158.1,1155.8,0.52920792]
[1761558991454,1.2931272,1158.1,1155.9,0.52920792]
[1761558991656,1.2931272,1158.1,1156.0,0.52920792]
[1761558991852,1.2931272,1158.1,1156.1,0.52920792]
[1761558992051,1.2931272,1158.1,1156.2,0.52920792]
[1761558992252,1.2931272,1158.1,1156.3,0.52920792]
[1761558992556,1.2931272,1158.1,1155.5,0.64269362]
[1761558992751,1.2931272,1158.1,1155.6,0.52932518]
[1761558992952,1.2931272,1158.1,1155.7,0.52932518]
[1761558993155,1.2931272,1158.1,1155.8,0.52932518]
[1761558993353,1.2931272,1158.1,1155.9,0.52932518]
[1761558993553,1.2931272,1158.1,1156.0,0.52932518]
[1761558993753,1.2931272,1158.1,1156.1,0.52932518]
[1761558993955,1.2931272,1158.1,1156.2,0.52932518]
[1761558994158,1.2931272,1158.0,1155.5,0.64269362]
[1761558994454,1.2931272,1158.0,1155.6,0.52953711]
[1761558994658,1.2931272,1158.0,1155.7,0.52953711]
[1761558994853,1.2931272,1158.0,1155.8,0.52953711]
[1761558995158,1.2931272,1158.0,1155.9,0.52953711]
[1761558995359,1.2931272,1158.0,1156.0,0.52953711]
[1761558995556,1.2931272,1158.0,1156.1,0.52953711]
[1761558995860,1.2931272,1158.0,1156.2,0.52953711]
[1761558996061,1.2931272,1158.0,1155.5,0.64269362]
[1761558996355,1.2931272,1158.0,1155.6,0.52945031]
[1761558996556,1.2931272,1158.0,1155.7,0.52945031]
[1761558996760,1.2931272,1158.0,1155.8,0.52945031]
[1761558996959,1.2931272,1158.0,1155.9,0.52945031]
[1761558997157,1.2931272,1158.0,1156.0,0.52945031]
[1761558997458,1.2931272,1158.0,1156.1,0.52945031]
[1761558997656,1.2931272,1158.0,1156.2,0.52945031]
[1761558997853,1.2931272,1158.0,1155.5,0.64269362]
[1761558998059,1.2931272,1158.0,1155.6,0.52948571]
[1761558998260,1.2931272,1158.0,1155.7,0.52948571]
[1761558998456,1.2931272,1158.0,1155.8,0.52948571]
[1761558998660,1.2931272,1158.0,1155.9,0.52948571]
[1761558998863,1.2931272,1158.0,1156.0,0.52948571]
[1761558999058,1.2931272,1158.0,1156.1,0.52948571]
[1761558999363,1.2931272,1158.0,1156.2,0.52948571]
[1761558999561,1.2931272,1157.7,1155.6,0.64269362]
[1761558999757,1.2931272,1157.7,1155.7,0.52950194]
[1761558999961,1.2931272,1157.4,1155.8,0.52950194]
[1761559000162,1.2931272,1157.4,1155.9,0.52950194]
[1761559000362,1.2931272,1157.4,1156.0,0.52950194]
[1761559000663,1.2931272,1157.4,1156.1,0.52950194]
[1761559000858,1.2931272,1157.4,1155.6,0.64269362]
[1761559001061,1.2931272,1157.4,1155.7,0.52950354]
[1761559001260,1.2931272,1157.4,1155.8,0.52950354]
[1761559001461,1.2931272,1157.4,1155.9,0.52950354]
[1761559001664,1.2931272,1157.4,1156.0,0.52950354]
[1761559001961,1.2931272,1157.4,1156.1,0.52950354]
[1761559002166,1.2931272,1157.4,1155.6,0.64269362]
[1761559002362,1.2931272,1157.3,1155.7,1.17219408]
[1761559002562,1.2931272,1157.3,1155.8,0.52950046]
[1761559002765,1.2931272,1157.3,1155.9,0.52950046]
[1761559002967,1.2931272,1157.3,1156.0,0.52950046]
[1761559003165,1.2931272,1157.3,1156.1,0.52950046]
[1761559003465,1.2931272,1157.3,1155.6,0.64269362]
[1761559003663,1.2931272,1157.3,1155.7,0.52923569]
[1761559003862,1.2931272,1157.3,1155.8,0.52923569]
[1761559004060,1.2931272,1157.3,1155.9,0.52923569]
[1761559004262,1.2931272,1157.3,1156.0,0.52923569]
[1761559004463,1.2931272,1157.3,1156.1,0.52923569]
[1761559004763,1.2931272,1157.3,1155.6,0.64269362]
[1761559005063,1.2931272,1157.3,1155.7,0.52909069]
[1761559005264,1.2931272,1157.4,1155.8,0.52909069]
[1761559005462,1.2931272,1157.4,1155.9,0.52909069]
[1761559005661,1.2931272,1157.4,1156.0,0.52909069]
[1761559005862,1.2931272,1157.4,1156.1,0.52909069]
[1761559006065,1.2931272,1157.4,1155.6,0.64269362]